bitfinex-derivatives/quotes_BTCF0:USTF0_20241224
["timestamp","ask_amount","ask_price","bid_price","bid_amount"]
[1735059607792,0.050774,98542.0,98537.0,0.0874]
[1735059607986,0.050774,98542.0,98538.0,0.086]
[1735059608394,0.36937437,98559.0,98541.0,0.3608]
[1735059608593,0.050771,98547.0,98542.0,0.4468]
[1735059609092,0.36937437,98559.0,98542.0,0.4468]
[1735059609295,0.36937437,98559.0,98549.0,0.17816684]
[1735059609591,0.36937437,98559.0,98549.0,0.050769]
[1735059609787,0.050766,98557.0,98549.0,0.050769]
[1735059609986,0.3608,98559.0,98542.0,0.44776]
[1735059610182,0.3608,98559.0,98552.0,0.050768]
[1735059610389,0.3608,98559.0,98549.0,0.17816684]
[1735059610588,0.3608,98559.0,98553.0,0.050767]
[1735059611000,0.3608,98559.0,98553.0,0.29243468]
[1735059611399,0.050767,98554.0,98553.0,0.24166768]
[1735059611799,0.050767,98554.0,98553.0,0.24366768]
[1735059611997,0.050763,98562.0,98554.0,0.050767]
[1735059612495,0.00867087,98572.0,98561.0,0.3608]
[1735059612698,0.3608,98584.0,98569.0,0.3608]
[1735059612994,0.050759,98571.0,98569.0,0.3608]
[1735059613200,0.00697824,98570.0,98569.0,0.3608]
[1735059613594,0.00697824,98570.0,98562.0,0.1764]
[1735059613899,0.050761,98567.0,98562.0,0.1764]
[1735059614198,0.00697824,98566.0,98562.0,0.1764]
[1735059614399,0.00697824,98565.0,98562.0,0.1764]
[1735059614599,0.00697824,98564.0,98562.0,0.1764]
[1735059614816,0.00697824,98563.0,98562.0,0.1764]
[1735059614997,0.00697465,98563.0,98562.0,0.1764]
[1735059615199,0.050748,98591.0,98562.0,0.1764]
[1735059615497,0.050748,98590.0,98589.0,0.3608]
[1735059616894,0.050744,98598.0,98589.0,0.3608]
[1735059617098,0.050746,98596.0,98589.0,0.3608]
[1735059617394,0.36950039,98605.0,98589.0,0.3608]
[1735059617700,0.050748,98591.0,98589.0,0.3618]
[1735059618101,0.050748,98591.0,98589.0,0.3628]
[1735059618697,0.050748,98591.0,98589.0,0.60547262]
[1735059618901,0.3608,98605.0,98589.0,0.60547262]
[1735059619088,0.050744,98599.0,98591.0,0.050748]
[1735059619288,0.050745,98597.0,98591.0,0.050748]
[1735059619491,0.36957387,98605.0,98589.0,0.60551262]
[1735059619691,0.36957387,98605.0,98589.0,0.60447262]
[1735059619887,0.050745,98598.0,98591.0,0.050748]
[1735059620097,0.050745,98598.0,98592.0,0.050747]
[1735059620296,0.36957387,98605.0,98592.0,0.050747]
[1735059620602,0.050747,98594.0,98592.0,0.050747]
[1735059621607,0.05962356,98594.0,98592.0,0.050747]
[1735059622308,0.05962356,98594.0,98592.0,0.051747]
[1735059624605,0.05962356,98594.0,98592.0,0.001]
[1735059625305,1.5,98593.0,98592.0,0.001]
[1735059625901,1.607,98593.0,98592.0,0.001]
[1735059626711,0.050748,98592.0,98574.0,0.050757]
[1735059626905,0.050755,98578.0,98574.0,0.050757]
[1735059627101,0.05761983,98578.0,98574.0,0.050757]
[1735059627699,0.05761995,98578.0,98575.0,0.050756]
[1735059627904,0.05761995,98578.0,98571.0,0.24167262]
[1735059627905,0.00686495,98578.0,98577.0,0.3628]
[1735059628300,0.00686495,98578.0,98577.0,0.3638]
[1735059628505,0.00686495,98578.0,98577.0,0.37249713]
[1735059628907,0.00686495,98578.0,98577.0,0.37049713]
[1735059629110,0.00686495,98578.0,98577.0,0.37249713]
[1735059629912,0.00686828,98578.0,98577.0,0.37249713]
[1735059630213,0.00686828,98578.0,98577.0,0.42325313]
[1735059630414,0.00686828,98578.0,98577.0,0.42125313]
[1735059630618,0.00686771,98578.0,98577.0,0.43125313]
[1735059631013,0.00686771,98587.0,98577.0,0.43125313]
[1735059631211,0.050755,98578.0,98577.0,0.3718]
[1735059631406,0.05762151,98578.0,98577.0,0.3678]
[1735059631715,0.05762151,98578.0,98577.0,0.3718]
[1735059632107,1.55762151,98578.0,98577.0,0.3718]
[1735059632307,0.05762151,98578.0,98577.0,0.3718]
[1735059632511,0.05762151,98578.0,98577.0,0.3698]
[1735059633612,0.05762151,98578.0,98577.0,0.3668]
[1735059634607,0.05862151,98578.0,98577.0,0.3608]
[1735059635312,0.06761645,98578.0,98577.0,0.3608]
[1735059637818,0.06661645,98578.0,98577.0,0.3608]
[1735059638120,0.06761645,98578.0,98577.0,0.3608]
[1735059638917,0.06074994,98578.0,98577.0,0.3608]
[1735059639118,0.06764237,98578.0,98577.0,0.3608]
[1735059639323,0.06764237,98578.0,98569.0,0.24114204]
[1735059639521,0.050757,98573.0,98569.0,0.24114204]
[1735059639823,0.050757,98573.0,98567.0,0.3608]
[1735059639824,0.05764943,98573.0,98567.0,0.3608]
[1735059640817,0.05764943,98573.0,98570.0,0.24211995]
[1735059641914,0.050757,98573.0,98567.0,0.60291995]
[1735059642122,0.05764921,98573.0,98567.0,0.60387995]
[1735059643326,0.05764921,98573.0,98567.0,0.41252]
[1735059643826,0.05764921,98573.0,98572.0,0.00552169]
[1735059644330,0.05764921,98573.0,98572.0,0.00352169]
[1735059644924,0.05764607,98573.0,98572.0,0.00652169]
[1735059645929,0.00688907,98573.0,98572.0,0.00652169]
[1735059646229,0.00688907,98573.0,98572.0,0.22592169]
[1735059646820,0.00688907,98573.0,98572.0,0.22192169]
[1735059647028,0.00688907,98573.0,98572.0,0.22392169]
[1735059647726,0.00688907,98573.0,98572.0,0.22592169]
[1735059648029,0.00688907,98573.0,98572.0,0.22692169]
[1735059648233,0.12145614,98599.0,98572.0,0.5356408]
[1735059648423,0.12145614,98599.0,98598.0,0.3608]
[1735059648822,0.12145614,98599.0,98598.0,0.5891]
[1735059649934,0.050741,98605.0,98598.0,0.78584347]
[1735059650633,0.01581919,98609.0,98598.0,0.83658747]
[1735059650834,0.001,98599.0,98598.0,0.83658747]
[1735059651025,0.001,98599.0,98598.0,0.639844]
[1735059651631,0.001,98605.0,98598.0,0.639844]
[1735059653334,0.001,98605.0,98599.0,0.050744]
[1735059653727,0.05074,98607.0,98599.0,0.050744]
[1735059654633,0.001,98605.0,98599.0,0.050744]
[1735059655134,0.050744,98600.0,98598.0,0.36176]
[1735059655341,0.050744,98600.0,98598.0,0.3608]
[1735059655733,0.001,98605.0,98604.0,0.050742]
[1735059656133,0.050734,98619.0,98599.0,0.1158]
[1735059656437,0.01578671,98605.0,98598.0,0.3608]
[1735059656624,0.050742,98603.0,98598.0,0.3608]
[1735059657036,0.01578671,98604.0,98603.0,0.050742]
[1735059657424,0.01578671,98606.0,98605.0,0.050741]
[1735059657624,0.01578671,98608.0,98607.0,0.05074]
[1735059657830,0.01578671,98609.0,98607.0,0.05074]
[1735059658035,0.01578671,98609.0,98608.0,0.2297]
[1735059658732,0.01578671,98610.0,98608.0,0.3542]
[1735059658929,0.01578671,98610.0,98609.0,0.411539]
[1735059659329,0.050733,98621.0,98609.0,0.3608]
[1735059659330,0.01578671,98612.0,98609.0,0.3608]
[1735059659632,0.01578671,98612.0,98610.0,0.050738]
[1735059659940,0.01578671,98611.0,98610.0,0.050738]
[1735059660132,0.02259926,98611.0,98609.0,0.3618]
[1735059660437,0.00681255,98610.0,98609.0,0.3618]
[1735059661638,0.00981255,98610.0,98609.0,0.3618]
[1735059662937,0.06055155,98610.0,98609.0,0.3618]
[1735059663146,0.06055155,98610.0,98594.0,0.24177518]
[1735059663147,0.83166077,98610.0,98594.0,0.24177518]
[1735059663339,0.050746,98595.0,98594.0,0.24177518]
[1735059663534,0.05755855,98595.0,98594.0,0.24177518]
[1735059663730,0.05755855,98595.0,98583.0,0.66397898]
[1735059663931,0.050752,98584.0,98583.0,0.66301898]
[1735059664243,0.05756455,98584.0,98583.0,0.66301898]
[1735059664541,0.05756455,98584.0,98583.0,0.3608]
[1735059664947,0.05758277,98584.0,98583.0,0.3608]
[1735059665456,0.05758291,98584.0,98583.0,0.3608]
[1735059666132,0.05758291,98584.0,98583.0,0.3628]
[1735059666342,0.05858291,98584.0,98583.0,0.3628]
[1735059666736,0.05858291,98584.0,98583.0,0.3608]
[1735059666937,0.06883212,98584.0,98583.0,0.3608]
[1735059667138,0.050758,98573.0,98572.0,0.00152169]
[1735059667351,0.050762,98564.0,98563.0,0.30069729]
[1735059667553,0.41839291,98564.0,98563.0,0.30069729]
[1735059667753,0.050768,98553.0,98552.0,0.1153]
[1735059668060,0.05759891,98553.0,98552.0,0.1153]
[1735059669560,0.05759891,98553.0,98547.0,0.3608]
[1735059669561,0.050771,98548.0,98547.0,0.3608]
[1735059669750,0.05760191,98548.0,98547.0,0.3608]
[1735059670761,0.06650429,98548.0,98547.0,0.3608]
[1735059670964,0.06650429,98548.0,98547.0,0.005]
[1735059672765,0.00052001,98573.0,98547.0,0.422571]
[1735059673062,0.12145614,98579.0,98567.0,0.3608]
[1735059673258,0.00897806,98579.0,98573.0,0.050757]
[1735059673561,0.050747,98595.0,98576.0,0.3608]
[1735059673748,0.05963752,98595.0,98587.0,0.41155]
[1735059674062,0.3608,98600.0,98592.0,0.050748]
[1735059674256,0.3608,98600.0,98590.0,0.17810201]
[1735059674567,0.3608,98600.0,98598.0,0.050744]
[1735059675062,0.01574276,98613.0,98595.0,0.3608]
[1735059675262,0.3608,98614.0,98607.0,0.05074]
[1735059676262,0.3608,98614.0,98587.0,0.41155]
[1735059676263,0.050745,98598.0,98587.0,0.3608]
[1735059676457,0.050744,98599.0,98591.0,0.050748]
[1735059676648,0.01574329,98600.0,98587.0,0.3608]
[1735059676848,0.050748,98593.0,98587.0,0.3608]
[1735059677052,0.050749,98591.0,98587.0,0.3608]
[1735059677253,0.01574329,98599.0,98587.0,0.3608]
[1735059677459,0.01574329,98600.0,98587.0,0.3628]
[1735059677667,0.050748,98592.0,98587.0,0.3628]
[1735059677963,0.050749,98591.0,98587.0,0.3628]
[1735059678158,0.3608,98593.0,98587.0,0.002]
[1735059678349,0.05075,98588.0,98587.0,0.002]
[1735059678765,1.55075,98588.0,98587.0,0.002]
[1735059679159,1.55075,98588.0,98587.0,0.003]
[1735059679460,0.3608,98593.0,98587.0,0.001]
[1735059679854,0.3608,98593.0,98578.0,0.00152168]
[1735059680059,0.051751,98588.0,98578.0,0.05227668]
[1735059680563,0.001,98588.0,98578.0,0.05227668]
[1735059680864,0.001,98588.0,98578.0,0.00152168]
[1735059681057,0.050754,98581.0,98578.0,0.00152168]
[1735059681858,0.050754,98581.0,98578.0,0.00352168]
[1735059682759,0.050754,98581.0,98578.0,0.00452168]
[1735059683267,0.050751,98587.0,98578.0,0.00452168]
[1735059684363,0.050751,98586.0,98578.0,0.00252168]
[1735059684668,0.050751,98586.0,98578.0,0.00452168]
[1735059684864,0.36819568,98593.0,98578.0,0.00452168]
[1735059685167,0.050752,98585.0,98578.0,0.00452168]
[1735059685563,0.050752,98585.0,98578.0,0.00252168]
[1735059685763,0.050752,98585.0,98578.0,0.00452168]
[1735059686359,0.050753,98583.0,98578.0,0.00452168]
[1735059687467,0.01575294,98591.0,98578.0,0.00452168]
[1735059687768,0.050754,98580.0,98578.0,0.00452168]
[1735059688170,0.050754,98580.0,98578.0,0.00352168]
[1735059688367,0.050754,98580.0,98578.0,0.00452168]
[1735059689259,0.36819568,98593.0,98578.0,0.00452168]
[1735059689260,0.01575294,98589.0,98578.0,0.00452168]
[1735059689460,0.050751,98587.0,98579.0,0.17810201]
[1735059690158,0.050751,98587.0,98578.0,0.05527768]
[1735059691573,0.01577355,98584.0,98578.0,0.05527768]
[1735059692269,0.01577355,98583.0,98578.0,0.05527768]
[1735059692471,0.01577355,98583.0,98578.0,0.05427768]
[1735059692771,0.01577355,98583.0,98578.0,0.05527768]
[1735059693274,0.01577355,98582.0,98578.0,0.05427768]
[1735059693478,0.01577355,98582.0,98578.0,0.05527768]
[1735059694362,0.01577355,98582.0,98578.0,0.00452168]
[1735059694569,0.050757,98579.0,98578.0,0.00452168]
[1735059695062,1.550757,98579.0,98578.0,0.00452168]
[1735059695765,0.050757,98579.0,98578.0,0.00452168]
[1735059696272,0.411557,98579.0,98578.0,0.00252168]
[1735059696865,0.41858915,98579.0,98578.0,0.00252168]
[1735059697071,0.41858905,98579.0,98578.0,0.00252168]
[1735059697874,0.41858905,98579.0,98578.0,0.00152168]
[1735059698774,0.41958905,98579.0,98578.0,0.00152168]
[1735059699868,0.43538152,98579.0,98578.0,0.00152168]
[1735059700069,0.43538485,98579.0,98578.0,0.00152168]
[1735059700271,0.41959238,98579.0,98578.0,0.00152168]
[1735059700674,0.05879238,98579.0,98578.0,0.00152168]
[1735059700877,0.00803538,98579.0,98578.0,0.36232168]
[1735059701181,0.00803538,98579.0,98578.0,0.60152168]
[1735059702178,0.01579622,98588.0,98578.0,0.96355642]
[1735059702368,0.3608,98593.0,98591.0,0.050751]
[1735059702876,0.48884376,98611.0,98586.0,0.411553]
[1735059703070,0.48884376,98611.0,98603.0,0.050744]
[1735059703265,0.050741,98610.0,98604.0,0.117]
[1735059703470,0.36796688,98611.0,98604.0,0.117]
[1735059703674,0.050743,98607.0,98604.0,0.117]
[1735059704682,0.050743,98607.0,98606.0,0.30249596]
[1735059705084,0.052743,98607.0,98606.0,0.30249596]
[1735059705286,0.002,98607.0,98606.0,0.30249596]
[1735059705985,0.36796688,98611.0,98605.0,0.050743]
[1735059706182,0.003,98607.0,98605.0,0.050743]
[1735059708691,0.00634316,98606.0,98605.0,0.050743]
[1735059709586,0.003,98607.0,98605.0,0.050743]
[1735059710286,0.003,98606.0,98605.0,0.050743]
[1735059710687,0.003,98606.0,98600.0,0.1255]
[1735059710884,0.053743,98606.0,98600.0,0.1255]
[1735059711386,0.053743,98606.0,98599.0,0.050747]
[1735059711784,0.050743,98606.0,98599.0,0.050747]
[1735059713091,0.051743,98606.0,98599.0,0.050747]
[1735059714387,0.00690816,98605.0,98603.0,0.050744]
[1735059714685,0.00690816,98604.0,98603.0,0.050744]
[1735059716381,0.3608,98611.0,98610.0,0.050741]
[1735059716595,0.13666721,98617.0,98606.0,0.3608]
[1735059716793,0.12087688,98618.0,98616.0,0.050738]
[1735059716988,0.01579033,98624.0,98622.0,0.050735]
[1735059717196,0.01579033,98625.0,98624.0,0.050734]
[1735059717488,0.1510961,98628.0,98618.0,0.3608]
[1735059717489,0.1510961,98628.0,98627.0,0.050732]
[1735059717698,0.1510961,98628.0,98627.0,0.411532]
[1735059718394,0.01579033,98641.0,98627.0,0.3608]
[1735059718587,0.01579033,98641.0,98636.0,0.411528]
[1735059718785,0.01579033,98642.0,98636.0,0.411528]
[1735059719184,0.01579033,98642.0,98641.0,0.050725]
[1735059719390,0.01579033,98645.0,98644.0,0.050723]
[1735059719583,0.01579033,98646.0,98644.0,0.050723]
[1735059720689,0.02319062,98646.0,98644.0,0.050723]
[1735059720899,0.01579033,98645.0,98644.0,0.050723]
[1735059721200,0.41786623,98645.0,98631.0,0.30249596]
[1735059721401,0.41153,98632.0,98631.0,0.30249596]
[1735059721595,0.41153,98632.0,98627.0,0.30249596]
[1735059721596,0.050732,98628.0,98627.0,0.30249596]
[1735059721797,0.05707523,98628.0,98627.0,0.30249596]
[1735059722503,0.050732,98628.0,98627.0,0.30249596]
[1735059722803,0.050737,98617.0,98616.0,0.001521]
[1735059724087,0.01349664,98617.0,98616.0,0.001521]
[1735059724284,0.003,98628.0,98616.0,0.001521]
[1735059724492,0.003,98628.0,98627.0,0.050732]
[1735059725002,0.003,98628.0,98617.0,0.1171]
[1735059725003,0.3608,98632.0,98616.0,0.001521]
[1735059725192,0.050737,98617.0,98616.0,0.001521]
[1735059725911,0.003,98628.0,98616.0,0.001521]
[1735059726200,0.053729,98628.0,98625.0,0.05073]
[1735059727393,0.050729,98628.0,98625.0,0.05073]
[1735059727607,0.3608,98633.0,98619.0,0.050733]
[1735059727803,0.05073,98626.0,98615.0,0.3608]
[1735059728001,0.411527,98633.0,98616.0,0.11854042]
[1735059728192,0.411527,98633.0,98631.0,0.050727]
[1735059729905,0.411527,98633.0,98631.0,0.051727]
[1735059730206,0.411527,98633.0,98631.0,0.001]
[1735059730504,0.414527,98633.0,98631.0,0.001]
[1735059732505,0.00634238,98632.0,98631.0,0.001]
[1735059733507,0.00634238,98632.0,98623.0,0.3608]
[1735059733703,0.050727,98632.0,98631.0,0.001]
[1735059733904,1.55706938,98632.0,98631.0,0.001]
[1735059734209,1.56006938,98632.0,98631.0,0.001]
[1735059734407,0.06006938,98632.0,98631.0,0.001]
[1735059735106,0.06688064,98632.0,98631.0,0.001]
[1735059735496,0.050731,98625.0,98623.0,0.411531]
[1735059735698,0.01315364,98624.0,98623.0,0.411531]
[1735059736601,0.01315364,98624.0,98623.0,0.3608]
[1735059737508,0.01515364,98624.0,98623.0,0.3608]
[1735059739706,0.050724,98639.0,98637.0,0.050724]
[1735059740601,0.050724,98639.0,98630.0,0.165328]
[1735059740801,0.00680324,98642.0,98637.0,0.3618]
[1735059741101,0.005,98639.0,98637.0,0.3618]
[1735059741309,0.02080533,98639.0,98637.0,0.3618]
[1735059741493,0.02080533,98639.0,98637.0,0.412525]
[1735059741804,0.005,98639.0,98637.0,0.412525]
[1735059742002,0.02080533,98639.0,98637.0,0.412525]
[1735059742310,0.005,98639.0,98637.0,0.412525]
[1735059742509,0.01580533,98641.0,98637.0,0.3618]
[1735059742709,0.3608,98652.0,98647.0,0.050719]
[1735059743998,0.3608,98652.0,98650.0,0.24176214]
[1735059744313,0.411517,98652.0,98650.0,0.24176214]
[1735059744510,0.415517,98652.0,98650.0,0.24176214]
[1735059744810,0.415517,98652.0,98650.0,0.21005584]
[1735059745203,0.050719,98648.0,98647.0,0.001]
[1735059745409,0.3608,98648.0,98636.0,0.30220267]
[1735059745711,0.411525,98637.0,98636.0,0.30220267]
[1735059745909,1.911525,98637.0,98636.0,0.30220267]
[1735059746510,0.3608,98637.0,98622.0,0.050732]
[1735059746713,0.050731,98626.0,98622.0,0.050732]
[1735059747108,0.3618,98637.0,98622.0,0.050732]
[1735059747610,0.050729,98629.0,98624.0,0.050731]
[1735059748009,0.0063423,98628.0,98623.0,0.3628]
[1735059748515,0.00664797,98637.0,98635.0,0.050725]
[1735059748711,0.050723,98640.0,98635.0,0.050725]
[1735059748712,0.00634156,98636.0,98635.0,0.050725]
[1735059748912,0.00634156,98636.0,98633.0,0.3608]
[1735059749210,0.3608,98634.0,98623.0,0.3638]
[1735059749412,0.050731,98624.0,98623.0,0.3638]
[1735059749710,0.05707256,98624.0,98623.0,0.3628]
[1735059749902,0.050734,98618.0,98617.0,0.30220267]
[1735059750110,0.05707711,98618.0,98617.0,0.30220267]
[1735059750309,0.05707711,98618.0,98611.0,0.36103474]
[1735059750310,0.050738,98612.0,98611.0,0.36103474]
[1735059750516,0.050738,98612.0,98611.0,0.35177055]
[1735059750707,0.050742,98604.0,98599.0,0.00096]
[1735059750903,0.05708511,98604.0,98592.0,0.1141]
[1735059751417,0.050742,98604.0,98602.0,0.050742]
[1735059751613,0.05708592,98604.0,98594.0,0.411547]
[1735059751918,0.06403708,98604.0,98594.0,0.3608]
[1735059752115,0.07085813,98604.0,98594.0,0.3608]
[1735059752416,0.43165813,98604.0,98586.0,0.01090367]
[1735059752623,0.43165813,98604.0,98580.0,0.050754]
[1735059752624,0.3608,98591.0,98580.0,0.050754]
[1735059752805,0.050755,98579.0,98577.0,0.3608]
[1735059753011,0.00696116,98578.0,98561.0,0.050764]
[1735059753215,0.050763,98564.0,98560.0,0.1154]
[1735059753413,0.050763,98564.0,98562.0,0.050763]
[1735059753414,0.01901424,98563.0,98562.0,0.050763]
[1735059753719,0.03479756,98563.0,98562.0,0.050763]
[1735059753915,0.01901424,98563.0,98562.0,0.050763]
[1735059754615,0.01901424,98563.0,98562.0,0.055763]
[1735059755212,0.03478143,98563.0,98562.0,0.063763]
[1735059755412,0.01901424,98563.0,98562.0,0.063763]
[1735059755615,0.0195524,98563.0,98562.0,0.063763]
[1735059757515,0.00752015,98563.0,98562.0,0.063763]
[1735059758916,0.050763,98564.0,98562.0,0.063763]
[1735059759119,0.00752359,98563.0,98562.0,0.063763]
[1735059759514,0.00752359,98563.0,98562.0,0.013]
[1735059761131,0.02009122,98563.0,98562.0,0.013]
[1735059761319,0.00752359,98563.0,98562.0,0.013]
[1735059761522,0.00752359,98564.0,98562.0,0.013]
[1735059761711,0.01572342,98569.0,98563.0,0.3608]
[1735059761712,0.01256763,98569.0,98563.0,0.3608]
[1735059761914,0.02829105,98584.0,98581.0,0.050756]
[1735059762109,0.00659573,98585.0,98583.0,0.050755]
[1735059762309,0.02239878,98588.0,98583.0,0.050755]
[1735059762621,0.050751,98592.0,98576.0,0.3608]
[1735059762814,0.01572342,98598.0,98596.0,0.050748]
[1735059763124,0.00634644,98612.0,98587.0,0.3608]
[1735059763125,0.01569918,98609.0,98602.0,0.050745]
[1735059763420,0.3608,98616.0,98597.0,0.47666]
[1735059763725,0.3608,98616.0,98608.0,0.050742]
[1735059764019,0.3608,98616.0,98601.0,0.050746]
[1735059764020,0.05074,98613.0,98601.0,0.050746]
[1735059764322,0.05074,98612.0,98602.0,0.050745]
[1735059764525,0.050745,98604.0,98597.0,0.48166]
[1735059764714,0.050745,98604.0,98597.0,0.4807]
[1735059764916,0.3608,98598.0,98597.0,0.005]
[1735059765927,0.3608,98598.0,98579.0,0.050757]
[1735059766123,0.050753,98587.0,98579.0,0.050757]
[1735059766425,0.050755,98584.0,98579.0,0.050757]
[1735059767626,0.050755,98584.0,98579.0,0.053757]
[1735059768228,0.00634506,98588.0,98581.0,0.050756]
[1735059768420,0.02204821,98588.0,98581.0,0.050756]
[1735059768814,0.00634506,98588.0,98581.0,0.050756]
[1735059769212,0.050753,98587.0,98581.0,0.050756]
[1735059769625,0.050757,98581.0,98579.0,0.003]
[1735059769826,0.050757,98581.0,98579.0,0.001]
[1735059770231,0.01570315,98586.0,98579.0,0.001]
[1735059770421,0.01570315,98587.0,98577.0,0.3608]
[1735059770627,0.01570315,98587.0,98581.0,0.001]
[1735059771422,0.01295285,98588.0,98581.0,0.001]
[1735059771423,0.050756,98582.0,98581.0,0.001]
[1735059771835,0.52476939,98582.0,98581.0,0.001]
[1735059772214,2.02476939,98582.0,98581.0,0.001]
[1735059772621,1.97401339,98582.0,98557.0,0.3608]
[1735059772819,0.050763,98568.0,98563.0,0.050766]
[1735059773233,0.01177706,98572.0,98565.0,0.00330346]
[1735059773532,0.050764,98567.0,98565.0,0.00330346]
[1735059773733,0.01914876,98566.0,98565.0,0.00330346]
[1735059775326,0.01914876,98566.0,98565.0,0.00930346]
[1735059775527,0.02586456,98566.0,98565.0,0.00930346]
[1735059775939,0.02586456,98566.0,98565.0,0.01330346]
[1735059776421,0.01410759,98566.0,98565.0,0.01330346]
[1735059776622,0.02593445,98566.0,98565.0,0.01330346]
[1735059776818,0.0259415,98566.0,98565.0,0.01330346]
[1735059777743,0.0259415,98566.0,98565.0,0.42486846]
[1735059777938,0.5692,98590.0,98565.0,0.42486846]
[1735059777939,0.3608,98613.0,98584.0,0.050755]
[1735059778123,0.12107336,98589.0,98588.0,0.050753]
[1735059779129,0.00634413,98595.0,98588.0,0.050753]
[1735059779329,0.00634413,98595.0,98594.0,0.05075]
[1735059779641,0.00634413,98598.0,98597.0,0.050748]
[1735059779838,0.050736,98621.0,98597.0,0.050748]
[1735059780031,0.17806261,98630.0,98612.0,0.05074]
[1735059780227,0.17806261,98622.0,98606.0,0.3608]
[1735059780528,0.050742,98610.0,98606.0,0.3608]
[1735059780732,0.050742,98610.0,98606.0,0.411543]
[1735059780924,0.3618,98618.0,98606.0,0.3608]
[1735059781134,0.36862754,98618.0,98611.0,0.050741]
[1735059781435,0.36762754,98618.0,98612.0,0.05074]
[1735059781638,0.050738,98617.0,98612.0,0.05074]
[1735059782836,0.055738,98617.0,98612.0,0.05074]
[1735059783432,0.055738,98617.0,98612.0,0.05174]
[1735059783932,0.05074,98613.0,98606.0,0.3608]
[1735059784239,0.05074,98613.0,98612.0,0.001]
[1735059785027,0.003,98613.0,98606.0,0.3618]
[1735059785232,0.050742,98610.0,98606.0,0.3618]
[1735059785443,0.003,98613.0,98612.0,0.05074]
[1735059785631,0.36762754,98618.0,98606.0,0.3618]
[1735059785941,0.050742,98609.0,98606.0,0.3618]
[1735059786130,0.005,98613.0,98606.0,0.3618]
[1735059786326,0.050743,98607.0,98606.0,0.3618]
[1735059786530,0.005,98613.0,98606.0,0.3618]
[1735059786729,0.050741,98612.0,98606.0,0.3618]
[1735059787147,0.050741,98612.0,98606.0,0.3608]
[1735059787636,0.050741,98612.0,98608.0,0.050743]
[1735059787833,0.37062754,98618.0,98606.0,0.3618]
[1735059788029,0.0063431,98617.0,98607.0,0.050744]
[1735059788230,0.0063431,98616.0,98614.0,0.05074]
[1735059788630,0.3608,98618.0,98606.0,0.3618]
[1735059788631,0.0063431,98615.0,98606.0,0.3618]
[1735059788829,0.0063431,98614.0,98606.0,0.3618]
[1735059789039,0.3608,98644.0,98613.0,0.050741]
[1735059789228,0.18131532,98648.0,98631.0,0.3608]
[1735059789428,0.00755551,98644.0,98638.0,0.050727]
[1735059789626,0.00755551,98644.0,98631.0,0.3608]
[1735059789935,0.05786443,98639.0,98631.0,0.3608]
[1735059790132,0.05073,98634.0,98631.0,0.3608]
[1735059790330,0.00713746,98633.0,98631.0,0.3608]
[1735059790525,0.00713746,98632.0,98631.0,0.3608]
[1735059790838,0.00713746,98632.0,98625.0,0.050734]
[1735059791036,0.00713746,98631.0,98625.0,0.050734]
[1735059791233,0.050733,98628.0,98623.0,0.3608]
[1735059791431,0.36793746,98627.0,98613.0,0.36823193]
[1735059791634,0.17806261,98623.0,98613.0,0.3608]
[1735059791932,0.00713746,98622.0,98613.0,0.3608]
[1735059792134,0.00713746,98621.0,98620.0,0.050737]
[1735059795438,0.00714348,98621.0,98620.0,0.050737]
[1735059795834,0.00714348,98621.0,98620.0,0.164537]
[1735059796340,0.01858265,98621.0,98620.0,0.164537]
[1735059797346,0.02492454,98621.0,98620.0,0.164537]
[1735059798930,0.02492454,98621.0,98617.0,0.3608]
[1735059799130,0.3608,98619.0,98601.0,0.3608]
[1735059799337,0.050751,98603.0,98601.0,0.3608]
[1735059799539,0.04069584,98602.0,98601.0,0.3608]
[1735059800044,0.050754,98597.0,98596.0,0.30249565]
[1735059800347,0.01862089,98597.0,98596.0,0.30249565]
[1735059800532,0.01862089,98597.0,98592.0,0.00152137]
[1735059800738,0.01862089,98596.0,98595.0,0.050755]
[1735059802146,0.01860459,98596.0,98595.0,0.050755]
[1735059802440,0.050751,98603.0,98595.0,0.050755]
[1735059802648,0.00714787,98602.0,98595.0,0.050755]
[1735059802844,0.00714787,98601.0,98592.0,0.00152137]
[1735059803037,0.00714787,98600.0,98596.0,0.050754]
[1735059803239,0.00714787,98599.0,98596.0,0.050754]
[1735059803436,0.00714787,98598.0,98596.0,0.050754]
[1735059803632,0.00714787,98597.0,98596.0,0.050754]
[1735059803838,0.00634333,98619.0,98612.0,0.050746]
[1735059804133,0.00634333,98618.0,98612.0,0.050746]
[1735059804439,0.050743,98620.0,98612.0,0.050746]
[1735059805339,0.002,98618.0,98612.0,0.050746]
[1735059805549,0.00634318,98617.0,98612.0,0.050746]
[1735059805941,0.10140445,98616.0,98604.0,0.3608]
[1735059806243,0.1779842,98614.0,98604.0,0.3608]
[1735059806448,0.1779842,98614.0,98607.0,0.050749]
[1735059806644,0.01576664,98608.0,98607.0,0.050749]
[1735059806839,0.01576664,98608.0,98604.0,0.3608]
[1735059807046,0.050751,98603.0,98597.0,0.1151]
[1735059807243,0.050751,98603.0,98596.0,0.008109]
[1735059807440,0.01576664,98601.0,98594.0,0.050756]
[1735059807641,0.050751,98603.0,98595.0,0.050755]
[1735059807845,0.050751,98603.0,98596.0,0.050754]
[1735059809045,0.050751,98603.0,98597.0,0.050754]
[1735059809444,0.050751,98603.0,98598.0,0.24199139]
[1735059810953,0.050751,98603.0,98598.0,0.29374439]
[1735059811350,0.00634387,98602.0,98598.0,0.29474439]
[1735059811654,0.00634387,98602.0,98598.0,0.052753]
[1735059811840,0.00634387,98601.0,98598.0,0.052753]
[1735059812037,0.00634387,98600.0,98598.0,0.052753]
[1735059812445,0.00634387,98599.0,98598.0,0.052753]
[1735059812854,0.00634387,98599.0,98598.0,0.051753]
[1735059813040,0.00634387,98599.0,98598.0,0.052753]
[1735059813248,0.00634387,98599.0,98598.0,0.051753]
[1735059813441,0.00634387,98599.0,98598.0,0.052753]
[1735059813663,0.1510961,98633.0,98610.0,0.1779842]
[1735059813847,0.1510961,98633.0,98631.0,0.050737]